fUSD/lending_fUSD_20250522
["ID","MTS","AMOUNT","RATE_DAILY","PERIOD"]
[361933966,1747899041049,-4110.82227782,0.0002097,2]
[361933968,1747899041059,-272.79,0.00021261,2]
[361933970,1747899041068,-204.9692255,0.00021429,5]
[361933971,1747899041078,-236.0,0.000219,5]
[361933973,1747899041087,-177.95,0.00021945,30]
[361933975,1747899041097,-231.28369723,0.00022117,2]
[361933978,1747899041108,-4110.82227782,0.0002255,2]
[361933979,1747899041119,-204.7704457,0.00023,2]
[361933981,1747899041128,-204.9692255,0.00023018,8]
[361933983,1747899041137,-362.54,0.00023148,2]
[361933985,1747899041147,-272.79,0.00023387,2]
[361933987,1747899041160,-239.84119403,0.00023486,2]
[361933989,1747899041170,-152032.33057289,0.00024,5]
[361933999,1747899041260,-660.76409961,0.00024,5]
[361934002,1747899041279,-609.5,0.00024,5]
[361934004,1747899041291,-2597.75,0.00024,5]
[361934008,1747899041322,-9243.95423337,0.00024,5]
[361934010,1747899041333,-2020.25723268,0.00024,5]
[361934148,1747899042706,-214.49107369,0.0001199,2]
[361934150,1747899042716,-11671.196917,0.00024,5]
[361934152,1747899042725,-4110.82227782,0.00024129,2]
[361934154,1747899042735,-600.0,0.00024269,2]
[361934156,1747899042744,-256.27,0.00024286,2]
[361934158,1747899042754,-2751.0,0.00024405,2]
[361934160,1747899042763,-151.0,0.00024427,2]
[361934162,1747899042774,-1199.20597015,0.00024427,2]
[361934164,1747899042783,-151.0,0.00024427,2]
[361934166,1747899042793,-668.65185757,0.00024427,2]
[361934168,1747899042803,-668.65185757,0.00024427,2]
[361934170,1747899042813,-162.84380928,0.00024427,2]
[361934172,1747899042822,-1273.00017923,0.00024441,2]
[361934175,1747899042842,-2239.10260521,0.00024441,2]
[361934177,1747899042854,-432.06190101,0.00024441,2]
[361934299,1747899044451,-19955.83531455,0.00024441,2]
[361934300,1747899044461,-165.5,0.00024551,2]
[361934302,1747899044470,-204.9692255,0.00024606,11]
[361934304,1747899044480,-150.0,0.00024642,7]
[361934305,1747899044490,-502.88943968,0.0002466,2]
[361934307,1747899044499,-501.79879328,0.0002466,2]
[361934309,1747899044510,-500.77246438,0.0002466,2]
[361934310,1747899044519,-500.0,0.0002466,2]
[361934312,1747899044529,-157.29,0.0002479,2]
[361934314,1747899044538,-231.76326273,0.00024799,2]
[361934315,1747899044547,-115.14270282,0.000248,2]
[361934431,1747899045622,-1859.1,0.000248,2]
[361934433,1747899045633,-157263.53628068,0.000248,2]
[361934449,1747899045775,-7747.3232,0.000248,2]
[361934696,1747900231629,-150.0,0.00013698,2]
[361934697,1747900231639,-154.91,0.00013699,2]
[361934698,1747900231649,-302.71,0.00014897,2]
[361934699,1747900231658,-301.3,0.00014897,2]
[361934700,1747900231667,-305.57,0.00014897,2]
[361934701,1747900231677,-300.56,0.00014898,2]
[361934702,1747900231687,-303.96,0.00014899,2]
[361934703,1747900231696,-303.14,0.00014899,2]
[361934704,1747900231705,-305.15,0.00014901,2]
[361934705,1747900231718,-305.4,0.00014901,2]
[361934706,1747900231728,-302.66,0.0001492,2]
[361934707,1747900231737,-303.0,0.0001492,2]
[361934708,1747900231746,-301.05,0.00015038,2]
[361934709,1747900231756,-301.05,0.00015038,2]
[361934710,1747900231765,-150.0,0.00015068,2]
[361934711,1747900231774,-150.0,0.00016438,2]
[361934712,1747900231784,-179.15,0.00016712,2]
[361934713,1747900231793,-150.0,0.00017808,2]
[361934714,1747900231803,-150.0,0.00019178,2]
[361934715,1747900231812,-150.0,0.0002,2]
[361934716,1747900231822,-154.91,0.00020187,2]
[361934717,1747900231831,-988.181,0.00020304,2]
[361934718,1747900231841,-286.58930007,0.00020547,2]
[361934719,1747900231851,-202.0,0.0002175,2]
[361934720,1747900231861,-562.63,0.00022,2]
[361934721,1747900231870,-734.99283696,0.00023244,2]
[361934722,1747900231880,-734.99283696,0.00023399,2]
[361934723,1747900231889,-734.99283696,0.00023696,2]
[361934724,1747900231899,-250.0,0.00023742,2]
[361934725,1747900231909,-169.79,0.00023837,30]
[361934726,1747900231919,-162.32,0.00023843,2]
[361934727,1747900231929,-200.0,0.00023847,2]
[361934728,1747900231939,-200.0,0.00023847,2]
[361934729,1747900231949,-734.99283696,0.0002388,2]
[361934730,1747900231960,-168.56,0.00023887,2]
[361934731,1747900231970,-200.40528629,0.000239,10]
[361934732,1747900231981,-500.67782542,0.00024,2]
[361934733,1747900231991,-150.0,0.00024088,7]
[361934734,1747900232000,-562.63,0.00024264,2]
[361934735,1747900232010,-734.99283696,0.00024288,2]
[361934736,1747900232020,-202.0,0.00024482,6]
[361934737,1747900232030,-207.4,0.00024555,2]
[361934738,1747900232040,-649.9,0.0002457,2]
[361934740,1747900232049,-300.0,0.00024578,2]
[361934742,1747900232059,-6799.94,0.00024579,2]
[361934744,1747900232069,-734.99283699,0.00024657,2]
[361934746,1747900232079,-200.40528626,0.00024683,11]
[361934748,1747900232088,-1151.34,0.00024706,2]
[361934750,1747900232098,-151.0,0.00024724,2]
[361934752,1747900232107,-1199.20597015,0.00024724,2]
[361934754,1747900232117,-151.0,0.00024724,2]
[361934756,1747900232126,-668.65185757,0.00024724,2]
[361934758,1747900232136,-668.65185757,0.00024724,2]
[361934760,1747900232145,-1351.33579488,0.00024739,2]
[361934764,1747900232176,-290.91999999,0.00024739,2]
[361934766,1747900232199,-595.90960311,0.00024739,2]
[361935320,1747900237971,-3060.288,0.00024739,2]
[361935322,1747900237982,-3679.89830267,0.00024739,2]
[361935324,1747900237994,-7283.37829935,0.00024739,2]
[361935326,1747900238004,-1000.0,0.00024743,2]
[361935328,1747900238014,-350.0,0.00024775,2]
[361935330,1747900238024,-211.08,0.00024788,2]
[361935333,1747900238033,-211.08,0.00024795,2]
[361935335,1747900238043,-151.0,0.000248,7]
[361935337,1747900238052,-151.0,0.000248,7]
[361935339,1747900238062,-392.65994458,0.000248,2]
[361935341,1747900238071,-177.24751871,0.000248,2]
[361935343,1747900238081,-211.08,0.00024801,2]
[361935345,1747900238091,-211.08,0.00024808,2]
[361935347,1747900238100,-211.08,0.00024814,2]
[361935349,1747900238109,-211.08,0.00024821,2]
[361935351,1747900238118,-211.08,0.00024827,2]
[361935353,1747900238128,-211.08,0.00024834,2]
[361935355,1747900238137,-211.08,0.0002484,2]
[361935356,1747900238147,-211.08,0.00024847,2]
[361935359,1747900238157,-2126.695,0.0002485,8]
[361935361,1747900238166,-150.0,0.0002485,8]
[361935363,1747900238176,-500.0,0.0002485,8]
[361935365,1747900238185,-150.0,0.0002485,2]
[361935367,1747900238194,-159.2014809,0.0002485,8]
[361935368,1747900238203,-500.0,0.0002485,8]
[361935371,1747900238213,-172.773,0.0002485,8]
[361935373,1747900238223,-211.08,0.00024853,2]
[361935375,1747900238232,-211.08,0.0002486,2]
[361935376,1747900238241,-211.08,0.00024866,2]
[361935378,1747900238251,-901.64365156,0.0002487,2]
[361935380,1747900238260,-211.08,0.00024873,2]
[361935382,1747900238270,-150.0,0.00024877,8]
[361935384,1747900238279,-500.0,0.00024877,8]
[361935386,1747900238288,-500.0,0.00024877,8]
[361935388,1747900238298,-211.08,0.0002488,2]
[361935390,1747900238307,-211.08,0.00024886,2]
[361935392,1747900238316,-211.08,0.00024893,2]
[361935394,1747900238326,-211.08,0.00024899,2]
[361935396,1747900238335,-200.0,0.00024905,8]
[361935398,1747900238344,-517.00588024,0.00024905,8]
[361935400,1747900238353,-500.0,0.00024905,8]
[361935402,1747900238362,-211.08,0.00024906,2]
[361935404,1747900238371,-211.08,0.00024912,2]
[361935406,1747900238381,-2751.0,0.00024914,2]
[361935408,1747900238390,-23900.0,0.00024922,2]
[361935410,1747900238399,-500.0,0.00024932,8]
[361935412,1747900238408,-500.0,0.0002496,8]
[361935414,1747900238417,-150.0,0.00024961,2]
[361935416,1747900238426,-210.09039838,0.00024961,2]
[361935418,1747900238436,-500.0,0.00024961,2]
[361935420,1747900238446,-1000.0,0.00024961,2]
[361935422,1747900238457,-166.81,0.00024986,2]
[361935424,1747900238466,-500.0,0.00024987,8]
[361935426,1747900238476,-150.0,0.00024988,2]
[361935428,1747900238487,-500.0,0.00024988,2]
[361935430,1747900238497,-500.0,0.00025014,8]
[361935432,1747900238507,-200.0,0.00025016,2]
[361935434,1747900238517,-500.0,0.00025016,2]
[361935436,1747900238527,-500.0,0.00025042,8]
[361935438,1747900238543,-500.0,0.00025043,2]
[361935440,1747900238552,-500.0,0.00025069,8]
[361935442,1747900238561,-150.0,0.00025071,2]
[361935444,1747900238570,-500.0,0.00025097,8]
[361935446,1747900238579,-500.0,0.00025124,8]
[361935448,1747900238589,-500.0,0.00025151,8]
[361935450,1747900238598,-500.0,0.00025179,8]
[361935452,1747900238609,-500.0,0.00025206,8]
[361935454,1747900238619,-496.30309611,0.00025234,8]
[361935456,1747900238629,-169.42,0.00025272,2]
[361935458,1747900238639,-154.1686952,0.00025272,2]
[361935460,1747900238648,-693.3919763,0.00025272,2]
[361935461,1747900238657,-166.95,0.00025354,2]
[361935463,1747900238666,-200.40528626,0.00025465,13]
[361935465,1747900238676,-876.47948203,0.00025671,2]
[361935468,1747900238688,-123.52051797,0.00025671,2]
[361935470,1747900238698,-719.04747942,0.0002582,2]
[361935472,1747900238708,-340.17763664,0.00025924,2]
[361935474,1747900238720,-156.587,0.00026093,2]
[361935475,1747900238729,-632.20882859,0.00026093,2]
[361935476,1747900238739,-800.22211036,0.00026093,2]
[361935477,1747900238748,-200.40528626,0.00026248,14]
[361935478,1747900238758,-800.41173884,0.00026368,2]
[361935479,1747900238767,-562.63,0.00026528,2]
[361935480,1747900238777,-1000.0,0.00026598,2]
[361935481,1747900238786,-154.91,0.00026676,2]
[361935482,1747900238796,-334.523514,0.00026842,4]
[361935483,1747900238807,-5266.27588792,0.00027,2]
[361935484,1747900238818,-970.98717045,0.00027,2]
[361935487,1747900238853,-477.05690586,0.00027,2]
[361935582,1747900239749,300.0,0.00012,5]
[361935588,1747900239801,-305.02,0.00014897,2]
[361935590,1747900239810,-14986.59766917,0.00027,2]
[361935592,1747900239820,-2300.00000001,0.00027,2]
[361935594,1747900239830,-150.0,0.00027,2]
[361935596,1747900239840,-200.40528626,0.0002703,16]
[361935598,1747900239849,-200.0,0.00027171,2]
[361935600,1747900239858,-202.0,0.00027214,10]
[361935602,1747900239869,-510.351,0.00027253,2]
[361935604,1747900239878,-443.08,0.0002726,2]
[361935606,1747900239888,-1102.81501963,0.00027273,2]
[361935608,1747900239897,-154.00185799,0.0002728,9]
[361935610,1747900239906,-2713.17460092,0.00027281,2]
[361935612,1747900239916,-164.1152807,0.00027281,2]
[361935614,1747900239925,-618.39672324,0.00027281,12]
[361935616,1747900239934,-500.0,0.0002737,2]
[361935618,1747900239943,-1756.79,0.00027371,2]
[361935620,1747900239952,-502.27405274,0.00027373,2]
[361935622,1747900239963,-500.74484075,0.00027373,2]
[361935624,1747900239974,-500.95769355,0.00027373,2]
[361935626,1747900239983,-71676.2190322,0.0002738,2]
[361935628,1747900239994,-1756.79,0.0002738,2]
[361935630,1747900240003,-157.225024,0.00027381,7]
[361935632,1747900240013,-156.99747,0.00027381,7]
[361935634,1747900240022,-7314.6331173,0.00027381,2]
[361935636,1747900240031,-22822.1112579,0.00027381,2]
[361935638,1747900240041,-103247.10507364,0.00027381,2]
[361935643,1747900240080,-1000.0,0.00027381,2]
[361935645,1747900240091,-5000.0,0.00027381,2]
[361935651,1747900240139,470.68237,0.00012,5]
[361935963,1747900243346,-231.602,0.00020304,2]
[361935965,1747900243355,-993.80249342,0.00027381,2]
[361935967,1747900243367,-2493.1,0.00027381,2]
[361935970,1747900243378,-9945.43022775,0.00027381,2]
[361935972,1747900243389,-11102.83864553,0.00027381,2]
[361935988,1747900243540,-650.0,0.00027381,2]
[361935991,1747900243552,-770.69613598,0.00027381,2]
[361935993,1747900243563,-610.98651663,0.00027381,2]
[361935997,1747900243597,-453.50371472,0.00027381,2]
[361936224,1747900245748,-19458.5436396,0.00027381,2]
[361936226,1747900245760,-70498.29529553,0.00027381,2]
[361936228,1747900245769,-212.54527197,0.00027381,2]
[361936250,1747900245965,-2583.98160013,0.00027381,2]
[361936252,1747900245976,-449.76448,0.00027381,2]
[361936254,1747900245986,-193.40896838,0.00027389,2]
[361936255,1747900245995,-500.0,0.00027389,2]
[361936257,1747900246004,-500.0,0.00027389,2]
[361936258,1747900246013,-500.0,0.00027389,2]
[361936259,1747900246023,-500.0,0.00027389,2]
[361936261,1747900246032,-500.0,0.00027389,2]
[361936262,1747900246041,-500.0,0.00027389,2]
[361936264,1747900246050,-500.0,0.00027389,2]
[361936266,1747900246067,-278.45981913,0.00027389,2]
[361936267,1747900246078,-500.0,0.00027389,2]
[361936269,1747900246088,-462.54838696,0.00027389,2]
[361936270,1747900246097,-500.0,0.00027389,2]
[361936272,1747900246106,-500.0,0.00027389,2]
[361936273,1747900246116,-500.0,0.00027389,2]
[361936274,1747900246125,-500.0,0.00027389,2]
[361936276,1747900246135,-500.0,0.00027389,2]
[361936277,1747900246145,-500.0,0.00027389,2]
[361936279,1747900246155,-500.0,0.00027389,2]
[361936281,1747900246166,-500.0,0.00027389,2]
[361936282,1747900246177,-500.0,0.00027389,2]
[361936284,1747900246186,-500.0,0.00027389,2]
[361936285,1747900246197,-500.0,0.00027389,2]
[361936287,1747900246207,-500.0,0.00027389,2]
[361936288,1747900246217,-500.0,0.00027389,2]
[361936290,1747900246227,-191824.08890582,0.0002739,2]
[361936291,1747900246236,-151.0,0.0002739,2]
[361936293,1747900246245,-4221.82514973,0.0002739,7]
[361936294,1747900246255,-91143.85110543,0.0002739,2]
[361936296,1747900246265,-500.0,0.000274,5]
[361936298,1747900246275,-501.64764314,0.000274,5]
[361936299,1747900246285,-296.413,0.00027462,2]
[361936301,1747900246295,-3000.0,0.000275,7]
[361936302,1747900246305,-1000.0,0.00027526,2]
[361936304,1747900246314,-3258.00995601,0.00027551,2]
[361936305,1747900246323,-1102.81501956,0.00027976,2]
[361936307,1747900246332,-2713.17460083,0.00027983,2]
[361936309,1747900246341,-1000.0,0.00028081,2]
[361936310,1747900246350,-1188.0,0.00028355,3]
[361936312,1747900246359,-1053.85,0.00028355,3]
[361936313,1747900246368,-1000.0,0.00028454,2]
[361936315,1747900246377,-2000.0,0.00028608,120]
[361936317,1747900246387,-1102.81501956,0.00028679,2]
[361936318,1747900246396,-2713.17460083,0.00028685,2]
[361936320,1747900246405,-562.63,0.00028792,2]
[361936322,1747900246415,-158.56,0.00029,2]
[361936323,1747900246424,-156.0,0.00029,14]
[361936325,1747900246433,-3258.00995601,0.00029371,2]
[361936326,1747900246442,-1102.81501956,0.00029381,2]
[361936328,1747900246452,-2713.17460083,0.00029387,2]
[361936330,1747900246462,-3258.00995601,0.0002949,2]
[361936331,1747900246471,-3500.0,0.000295,7]
[361936333,1747900246481,-166.95,0.00029539,2]
[361936335,1747900246490,-500.0,0.00029589,30]
[361936336,1747900246500,-510.96082543,0.00029863,30]
[361936338,1747900246510,-156.24105822,0.000299,90]
[361936339,1747900246519,-202.0,0.00029946,14]
[361936341,1747900246528,-10000.0,0.0003,10]
[361936343,1747900246541,-1102.81501956,0.00030084,2]
[361936344,1747900246550,-2713.17460083,0.00030089,2]
[361936346,1747900246559,-3258.00995601,0.00030188,2]
[361936348,1747900246569,-2000.0,0.00030208,120]
[361936349,1747900246578,-1102.81501956,0.00030787,2]
[361936351,1747900246588,-2713.17460083,0.0003079,2]
[361936352,1747900246597,-150.0,0.00031,30]
[361936354,1747900246606,-562.63,0.00031056,2]
[361936356,1747900246618,-3258.00995601,0.00031191,2]
[361936357,1747900246628,-1000.0,0.00031201,2]
[361936359,1747900246637,-150.34,0.00031233,2]
[361936361,1747900246646,-807.51638031,0.0003147,2]
[361936362,1747900246656,-1102.81501956,0.0003149,2]
[361936364,1747900246665,-2713.17460083,0.00031492,2]
[361936365,1747900246675,-3500.0,0.000315,7]
[361936367,1747900246684,-3258.00995601,0.00031869,2]
[361936369,1747900246694,-2021.378357,0.00031889,120]
[361936370,1747900246704,-618.39672324,0.00031947,26]
[361936372,1747900246715,-4549.16100011,0.00032,10]
[361936374,1747900246724,-400.0,0.00032,2]
[361936375,1747900246733,-273.05535612,0.00032122,2]
[361936377,1747900246742,-1102.81501956,0.00032192,2]
[361936378,1747900246751,-2713.17460083,0.00032194,2]
[361936380,1747900246760,-3258.00995601,0.00032212,2]
[361936382,1747900246770,-3258.00995601,0.00032222,2]
[361936383,1747900246779,-150.99,0.00032232,2]
[361936385,1747900246788,-8619.71,0.00032232,2]
[361936386,1747900246797,-976.92,0.00032232,2]
[361936388,1747900246807,-5753.65,0.00032232,10]
[361936390,1747900246816,-1219.41272779,0.00032599,2]
[361936391,1747900246825,-197.0,0.000326,31]
[361936393,1747900246834,-150.0,0.00032601,2]
[361936394,1747900246843,-150.0,0.00032604,2]
[361936396,1747900246852,-150.0,0.00032604,2]
[361936398,1747900246862,-150.0,0.00032613,2]
[361936399,1747900246871,-222.88370399,0.00032628,2]
[361936401,1747900246880,-150.0,0.00032637,2]
[361936402,1747900246889,-150.0,0.0003265,2]
[361936404,1747900246898,-150.0,0.0003266,2]
[361936406,1747900246907,-3258.00995601,0.00032661,2]
[361936407,1747900246917,-202.0,0.00032678,18]
[361936409,1747900246926,-150.0,0.0003268,2]
[361936411,1747900246935,-3258.00995601,0.0003268,2]
[361936412,1747900246944,-6516.01991202,0.0003269,2]
[361936414,1747900246954,-150.0,0.00032697,2]
[361936415,1747900246963,-2264.17602508,0.00032699,45]
[361936417,1747900246972,-252.77292833,0.000327,4]
[361936419,1747900246981,-150.0,0.00032702,2]
[361936421,1747900246990,-150.0,0.00032712,2]
[361936422,1747900247000,-150.0,0.00032712,2]
[361936423,1747900247009,-150.0,0.00032715,2]
[361936424,1747900247018,-150.0,0.00032716,2]
[361936425,1747900247027,-1000.0,0.0003272,2]
[361936426,1747900247036,-150.0,0.00032721,2]
[361936427,1747900247046,-150.0,0.00032728,2]
[361936428,1747900247055,-150.0,0.00032731,2]
[361936429,1747900247064,-150.0,0.00032739,2]
[361936430,1747900247073,-150.0,0.00032753,2]
[361936431,1747900247083,-150.0,0.00032754,2]
[361936432,1747900247092,-1000.0,0.0003276,2]
[361936433,1747900247101,-150.0,0.00032767,2]
[361936434,1747900247110,-150.0,0.00032769,2]
[361936436,1747900247119,-150.0,0.00032772,2]
[361936437,1747900247129,-150.0,0.00032777,2]
[361936438,1747900247138,-150.0,0.00032789,2]
[361936439,1747900247148,-16290.0497801,0.0003279,2]
[361936440,1747900247157,-5000.0,0.000328,2]
[361936441,1747900247167,-5000.0,0.000328,2]
[361936442,1747900247176,-5000.0,0.000328,2]
[361936443,1747900247185,-5000.0,0.000328,2]
[361936445,1747900247196,-5000.0,0.000328,2]
[361936447,1747900247205,-5000.0,0.000328,2]
[361936449,1747900247215,-5000.0,0.000328,2]
[361936451,1747900247225,-5000.0,0.000328,2]
[361936453,1747900247235,-5000.0,0.000328,2]
[361936455,1747900247244,-5000.0,0.000328,2]
[361936457,1747900247254,-5000.0,0.000328,2]
[361936459,1747900247264,-5000.0,0.000328,2]
[361936461,1747900247273,-808.919,0.000328,60]
[361936463,1747900247282,-200.494572,0.000328,7]
[361936465,1747900247292,-150.0,0.00032818,2]
[361936467,1747900247301,-150.0,0.00032823,2]
[361936469,1747900247311,-150.0,0.00032831,2]
[361936471,1747900247320,-150.0,0.00032832,2]
[361936473,1747900247329,-150.0,0.00032835,2]
[361936475,1747900247339,-150.0,0.00032835,2]
[361936477,1747900247349,-1000.0,0.00032837,2]
[361936479,1747900247359,-1000.0,0.00032843,2]
[361936481,1747900247369,-150.0,0.00032851,2]
[361936482,1747900247378,-3258.00995601,0.00032854,2]
[361936484,1747900247387,-150.0,0.00032856,2]
[361936486,1747900247397,-6516.01991202,0.0003286,2]
[361936488,1747900247407,-150.0,0.00032861,2]
[361936490,1747900247416,-9774.02986803,0.00032864,2]
[361936492,1747900247426,-700.0,0.0003287,2]
[361936494,1747900247436,-500.0,0.0003287,2]
[361936496,1747900247446,-30000.0,0.0003287,2]
[361936498,1747900247456,-502.12350183,0.00032873,5]
[361936500,1747900247465,-500.29821391,0.00032873,5]
[361936502,1747900247474,-501.57195654,0.00032873,5]
[361936504,1747900247484,-502.66965769,0.00032873,5]
[361936506,1747900247493,-500.42066095,0.00032873,5]
[361936508,1747900247502,-500.4201393,0.00032873,5]
[361936510,1747900247512,-261.38066231,0.00032873,120]
[361936512,1747900247521,-225805.99065264,0.00032874,13]
[361936514,1747900247531,-318.81969396,0.00032875,30]
[361936516,1747900247546,-224.766118,0.00032876,5]
[361936519,1747900247561,-170.948772,0.00032876,5]
[361936521,1747900247576,-445.657566,0.00032876,5]
[361936524,1747900247592,-354.680787,0.00032876,5]
[361936526,1747900247605,-151.0,0.00032876,7]
[361936529,1747900247621,-184.787888,0.00032876,7]
[361936531,1747900247637,-226.053916,0.00032876,7]
[361936534,1747900247652,-151.0,0.00032876,7]
[361936536,1747900247667,-152.844723,0.00032876,7]
[361936539,1747900247682,-152.337464,0.00032876,7]
[361936541,1747900247696,-151.0,0.00032876,7]
[361936544,1747900247708,-153.84225,0.00032876,7]
[361936546,1747900247723,-166.666666,0.00032876,5]
[361936549,1747900247738,-151.0,0.00032876,7]
[361936551,1747900247753,-420.0,0.00032876,5]
[361936554,1747900247768,-420.0,0.00032876,5]
[361936556,1747900247783,-420.0,0.00032876,5]
[361936559,1747900247796,-420.0,0.00032876,5]
[361936561,1747900247812,-420.0,0.00032876,5]
[361936564,1747900247826,-420.0,0.00032876,5]
[361936566,1747900247840,-420.0,0.00032876,5]
[361936569,1747900247854,-420.0,0.00032876,5]
[361936572,1747900247868,-420.0,0.00032876,5]
[361936574,1747900247883,-420.0,0.00032876,5]
[361936576,1747900247896,-369.08484345,0.00032876,2]
[361936579,1747900247908,-420.0,0.00032876,5]
[361936581,1747900247921,-420.0,0.00032876,5]
[361936583,1747900247932,-420.0,0.00032876,5]
[361936586,1747900247944,-427.2445265,0.00032876,5]
[361936588,1747900247961,-420.0,0.00032876,5]
[361936591,1747900247973,-1022.28,0.00032876,5]
[361936593,1747900247984,-423.93463841,0.00032876,5]
[361936595,1747900247995,-420.0,0.00032876,5]
[361936598,1747900248009,-484.38,0.00032876,5]
[361936600,1747900248025,-420.0,0.00032876,5]
[361936603,1747900248037,-420.0,0.00032876,5]
[361936605,1747900248049,-420.52412631,0.00032876,5]
[361936607,1747900248061,-420.0,0.00032876,5]
[361936609,1747900248073,-582.47,0.00032876,5]
[361936611,1747900248085,-420.0,0.00032876,5]
[361936614,1747900248098,-420.0,0.00032876,5]
[361936616,1747900248110,-420.0,0.00032876,5]
[361936619,1747900248123,-592.65,0.00032876,5]
[361936622,1747900248144,-420.0,0.00032876,5]
[361936624,1747900248157,-420.0,0.00032876,5]
[361936626,1747900248169,-388.02039033,0.00032876,5]
[361936628,1747900248182,-990.07,0.00032876,5]
[361936631,1747900248196,-500.0,0.00032876,5]
[361936633,1747900248210,-833.96,0.00032876,5]
[361936635,1747900248223,-420.0,0.00032876,5]
[361936637,1747900248237,-548.66,0.00032876,5]
[361936640,1747900248250,-420.0,0.00032876,5]
[361936642,1747900248263,-420.60257614,0.00032876,5]
[361936644,1747900248275,-420.0,0.00032876,5]
[361936647,1747900248287,-420.0,0.00032876,5]
[361936649,1747900248299,-442.76,0.00032876,5]
[361936651,1747900248312,-423.69429578,0.00032876,5]
[361936653,1747900248324,-420.0,0.00032876,5]
[361936656,1747900248337,-420.0,0.00032876,5]
[361936658,1747900248350,-420.0,0.00032876,5]
[361936660,1747900248363,-752.41,0.00032876,5]
[361936663,1747900248375,-534.94817979,0.00032876,5]
[361936665,1747900248388,-420.0,0.00032876,5]
[361936667,1747900248401,-425.02,0.00032876,5]
[361936669,1747900248413,-420.0,0.00032876,5]
[361936672,1747900248426,-420.0,0.00032876,5]
[361936674,1747900248440,-512.53,0.00032876,5]
[361936676,1747900248452,-420.0,0.00032876,5]
[361936678,1747900248465,-420.0,0.00032876,5]
[361936681,1747900248478,-441.95,0.00032876,5]
[361936683,1747900248492,-424.53675567,0.00032876,5]
[361936685,1747900248506,-476.8,0.00032876,5]
[361936688,1747900248518,-672.7,0.00032876,5]
[361936690,1747900248530,-420.0,0.00032876,5]
[361936692,1747900248546,-420.0,0.00032876,5]
[361936694,1747900248558,-420.0,0.00032876,5]
[361936697,1747900248571,-289.83487175,0.00032876,5]
[361936699,1747900248584,-420.0,0.00032876,5]
[361936700,1747900248596,-420.0,0.00032876,5]
[361936701,1747900248610,-726.24,0.00032876,5]
[361936702,1747900248623,-420.0,0.00032876,5]
[361936703,1747900248636,-420.0,0.00032876,5]
[361936704,1747900248648,-655.66,0.00032876,5]
[361936705,1747900248661,-420.0,0.00032876,5]
[361936706,1747900248674,-420.0,0.00032876,5]
[361936707,1747900248686,-420.0,0.00032876,5]
[361936708,1747900248698,-734.83,0.00032876,5]
[361936709,1747900248710,-420.0,0.00032876,5]
[361936710,1747900248722,-426.79,0.00032876,5]
[361936711,1747900248735,-420.0,0.00032876,5]
[361936713,1747900248747,-420.0,0.00032876,5]
[361936714,1747900248759,-420.0,0.00032876,5]
[361936715,1747900248771,-420.0,0.00032876,5]
[361936716,1747900248783,-420.716669,0.00032876,5]
[361936717,1747900248795,-420.0,0.00032876,5]
[361936718,1747900248808,-484.29,0.00032876,5]
[361936719,1747900248819,-420.0,0.00032876,5]
[361936720,1747900248832,-690.22,0.00032876,5]
[361936721,1747900248844,-504.84,0.00032876,5]
[361936722,1747900248856,-448.56,0.00032876,5]
[361936723,1747900248868,-420.0,0.00032876,5]